[Event "Live Chess"]
[Site "Chess.com"]
[Date "2023.05.20"]
[Round "-"]
[White "JackCheetham1"]
[Black "Crowded_House"]
[Result "1-0"]
[WhiteElo "1707"]
[BlackElo "1682"]
[TimeControl "300"]
[EndTime "9:14:27 PDT"]
[Termination "JackCheetham1 won by checkmate"]

1. e4 {[%clk 0:04:57.7]} 1... e6 {[%clk 0:04:58.9]} 2. d4 {[%clk 0:04:56.2]}
2... d5 {[%clk 0:04:57.6]} 3. Nd2 {[%clk 0:04:55.1]} 3... Bb4 {[%clk 0:04:54.3]}
4. c3 {[%clk 0:04:53.2]} 4... Ba5 {[%clk 0:04:52.3]} 5. Ngf3 {[%clk 0:04:51.6]}
5... Nf6 {[%clk 0:04:48.2]} 6. Bd3 {[%clk 0:04:49.2]} 6... dxe4 {[%clk
0:04:39.9]} 7. Nxe4 {[%clk 0:04:47.3]} 7... Nxe4 {[%clk 0:04:37.8]} 8. Bxe4
{[%clk 0:04:47.2]} 8... c6 {[%clk 0:04:30.7]} 9. O-O {[%clk 0:04:43.1]} 9... Nd7
{[%clk 0:04:29.7]} 10. h3 {[%clk 0:04:32.6]} 10... Nf6 {[%clk 0:04:29.2]} 11.
Bc2 {[%clk 0:04:30.8]} 11... h6 {[%clk 0:04:28]} 12. Bf4 {[%clk 0:04:29.1]}
12... Bc7 {[%clk 0:04:25]} 13. Qd2 {[%clk 0:04:24.1]} 13... Bxf4 {[%clk
0:04:19.6]} 14. Qxf4 {[%clk 0:04:22.6]} 14... O-O {[%clk 0:04:12.5]} 15. Rfe1
{[%clk 0:04:14]} 15... Nd5 {[%clk 0:04:11.1]} 16. Qg3 {[%clk 0:04:10.4]} 16...
Bd7 {[%clk 0:03:59.5]} 17. Ne5 {[%clk 0:04:07.2]} 17... Nf6 {[%clk 0:03:52.7]}
18. Rad1 {[%clk 0:03:59.2]} 18... Rc8 {[%clk 0:03:41]} 19. b3 {[%clk 0:03:40.1]}
19... Qc7 {[%clk 0:03:40.1]} 20. c4 {[%clk 0:03:30.5]} 20... Rfd8 {[%clk
0:03:37.5]} 21. Rd2 {[%clk 0:03:26.3]} 21... Be8 {[%clk 0:03:36.1]} 22. Red1
{[%clk 0:03:23.9]} 22... Nd7 {[%clk 0:03:35.3]} 23. f4 {[%clk 0:03:03.4]} 23...
Nxe5 {[%clk 0:03:28.2]} 24. fxe5 {[%clk 0:03:01.2]} 24... f6 {[%clk 0:03:25.8]}
25. Qd3 {[%clk 0:02:51.6]} 25... f5 {[%clk 0:03:17.4]} 26. Qf3 {[%clk
0:02:33.3]} 26... Qf7 {[%clk 0:03:05.4]} 27. Bb1 {[%clk 0:02:22.4]} 27... Qh5
{[%clk 0:03:03.9]} 28. Qg3 {[%clk 0:02:14.1]} 28... Qg5 {[%clk 0:02:59.1]} 29.
Qxg5 {[%clk 0:02:11.7]} 29... hxg5 {[%clk 0:02:58.3]} 30. d5 {[%clk 0:02:04.6]}
30... cxd5 {[%clk 0:02:54.2]} 31. cxd5 {[%clk 0:02:04.5]} 31... exd5 {[%clk
0:02:38.2]} 32. Bxf5 {[%clk 0:02:00.1]} 32... Bd7 {[%clk 0:02:37.3]} 33. Rxd5
{[%clk 0:01:51]} 33... Rc7 {[%clk 0:02:24.2]} 34. e6 {[%clk 0:01:46.8]} 34...
Kf8 {[%clk 0:02:09.9]} 35. exd7 {[%clk 0:01:41.3]} 35... Ke7 {[%clk 0:02:08.2]}
36. Bg4 {[%clk 0:01:30]} 36... b6 {[%clk 0:02:02.3]} 37. Re1+ {[%clk 0:01:27.4]}
37... Kf8 {[%clk 0:01:59.1]} 38. Rde5 {[%clk 0:01:05.1]} 38... Rcxd7 {[%clk
0:01:53.4]} 39. Bxd7 {[%clk 0:01:03]} 39... Rxd7 {[%clk 0:01:52.9]} 40. Re8+
{[%clk 0:01:01.8]} 40... Kf7 {[%clk 0:01:52.2]} 41. Ra8 {[%clk 0:00:55.6]} 41...
g6 {[%clk 0:01:48.5]} 42. Rf1+ {[%clk 0:00:54.8]} 42... Kg7 {[%clk 0:01:46.7]}
43. Re8 {[%clk 0:00:49.3]} 43... Rc7 {[%clk 0:01:45.1]} 44. Rfe1 {[%clk
0:00:47.7]} 44... Kf7 {[%clk 0:01:42.2]} 45. Rh8 {[%clk 0:00:44]} 45... Kg7
{[%clk 0:01:38.7]} 46. Rhe8 {[%clk 0:00:40.4]} 46... Kf7 {[%clk 0:01:36.2]} 47.
R8e2 {[%clk 0:00:39.9]} 47... Kg7 {[%clk 0:01:34.6]} 48. Rf1 {[%clk 0:00:39.4]}
48... Rd7 {[%clk 0:01:29.8]} 49. Rfe1 {[%clk 0:00:37.7]} 49... Kf7 {[%clk
0:01:27.7]} 50. g4 {[%clk 0:00:36.8]} 50... Kf6 {[%clk 0:01:19.8]} 51. Rf2+
{[%clk 0:00:35.8]} 51... Kg7 {[%clk 0:01:18.8]} 52. Re5 {[%clk 0:00:34.5]} 52...
Kh6 {[%clk 0:01:12.1]} 53. Rf8 {[%clk 0:00:33.3]} 53... Kg7 {[%clk 0:01:05.8]}
54. Rfe8 {[%clk 0:00:30.1]} 54... Rd1+ {[%clk 0:01:04.1]} 55. Re1 {[%clk
0:00:28.3]} 55... Rd7 {[%clk 0:01:02.4]} 56. R8e7+ {[%clk 0:00:27.5]} 56... Rxe7
{[%clk 0:00:58.7]} 57. Rxe7+ {[%clk 0:00:27.4]} 57... Kf6 {[%clk 0:00:58.1]} 58.
Rxa7 {[%clk 0:00:27.1]} 58... Ke6 {[%clk 0:00:57.7]} 59. Rb7 {[%clk 0:00:25.9]}
59... Kd6 {[%clk 0:00:55.6]} 60. Rxb6+ {[%clk 0:00:25.2]} 60... Kc5 {[%clk
0:00:54.6]} 61. Rxg6 {[%clk 0:00:24.9]} 61... Kb4 {[%clk 0:00:53.4]} 62. Rxg5
{[%clk 0:00:24.4]} 62... Ka3 {[%clk 0:00:52.6]} 63. h4 {[%clk 0:00:23.7]} 63...
Kb2 {[%clk 0:00:52.1]} 64. h5 {[%clk 0:00:23.6]} 64... Kc3 {[%clk 0:00:51.3]}
65. h6 {[%clk 0:00:23.5]} 65... Kb4 {[%clk 0:00:50.4]} 66. h7 {[%clk 0:00:23.4]}
66... Ka3 {[%clk 0:00:49.9]} 67. h8=Q {[%clk 0:00:23.3]} 67... Kb4 {[%clk
0:00:43.6]} 68. Qd4+ {[%clk 0:00:20.6]} 68... Ka3 {[%clk 0:00:43]} 69. Qa4+
{[%clk 0:00:19.5]} 69... Kb2 {[%clk 0:00:42.2]} 70. Rf5 {[%clk 0:00:17.9]} 70...
Kc3 {[%clk 0:00:40]} 71. Qc4+ {[%clk 0:00:16.4]} 71... Kb2 {[%clk 0:00:38.9]}
72. Rf2+ {[%clk 0:00:15.4]} 72... Ka3 {[%clk 0:00:35.8]} 73. Qa4# {[%clk
0:00:14.1]} 1-0

[Event "Live Chess"]
[Site "Chess.com"]
[Date "2023.05.20"]
[Round "-"]
[White "viktorskliarov"]
[Black "toog"]
[Result "1/2-1/2"]
[WhiteElo "2644"]
[BlackElo "2635"]
[TimeControl "300"]
[EndTime "9:14:28 PDT"]
[Termination "Game drawn by agreement"]

1. e4 {[%clk 0:04:58.4]} 1... c6 {[%clk 0:04:53.2]} 2. d4 {[%clk 0:04:56.4]}
2... d5 {[%clk 0:04:51.5]} 3. e5 {[%clk 0:04:55.6]} 3... Bf5 {[%clk 0:04:49.9]}
4. Nf3 {[%clk 0:04:55.3]} 4... e6 {[%clk 0:04:48.5]} 5. Be2 {[%clk 0:04:54.8]}
5... Nd7 {[%clk 0:04:47.2]} 6. O-O {[%clk 0:04:54.1]} 6... h6 {[%clk 0:04:46.3]}
7. a4 {[%clk 0:04:53.3]} 7... Ne7 {[%clk 0:04:45.4]} 8. a5 {[%clk 0:04:52.9]}
8... g5 {[%clk 0:04:41.9]} 9. Ne1 {[%clk 0:04:52.1]} 9... Bg7 {[%clk 0:04:40.4]}
10. Nd3 {[%clk 0:04:48.9]} 10... f6 {[%clk 0:04:27.8]} 11. Bh5+ {[%clk
0:04:38.5]} 11... Bg6 {[%clk 0:04:24.8]} 12. f4 {[%clk 0:04:37.8]} 12... O-O
{[%clk 0:04:19]} 13. Bxg6 {[%clk 0:03:56.8]} 13... Nxg6 {[%clk 0:04:17.4]} 14.
f5 {[%clk 0:03:56.3]} 14... exf5 {[%clk 0:04:15]} 15. e6 {[%clk 0:03:55.9]}
15... Nb8 {[%clk 0:03:59]} 16. Rxf5 {[%clk 0:03:54.4]} 16... Qe7 {[%clk
0:03:57.5]} 17. Nc5 {[%clk 0:03:51]} 17... Na6 {[%clk 0:03:56.1]} 18. Nxa6
{[%clk 0:03:27.2]} 18... bxa6 {[%clk 0:03:56]} 19. Qe2 {[%clk 0:03:20.1]} 19...
Rfe8 {[%clk 0:03:51.9]} 20. Qxa6 {[%clk 0:03:06.9]} 20... Qxe6 {[%clk
0:03:49.2]} 21. Rf1 {[%clk 0:03:05.6]} 21... Qe4 {[%clk 0:03:35.8]} 22. Nc3
{[%clk 0:02:50.2]} 22... Qxd4+ {[%clk 0:03:31.9]} 23. Kh1 {[%clk 0:02:49.1]}
23... Ne5 {[%clk 0:03:22.9]} 24. Ra4 {[%clk 0:02:24.7]} 24... Qc5 {[%clk
0:03:13]} 25. Qe2 {[%clk 0:02:22.8]} 25... Rab8 {[%clk 0:03:04.3]} 26. Be3
{[%clk 0:02:15.8]} 26... Qe7 {[%clk 0:03:02.4]} 27. Bd4 {[%clk 0:02:10.4]} 27...
Rb4 {[%clk 0:02:47]} 28. b3 {[%clk 0:01:56.3]} 28... Rxa4 {[%clk 0:02:35.8]} 29.
Nxa4 {[%clk 0:01:56.2]} 29... Qc7 {[%clk 0:02:26.5]} 30. a6 {[%clk 0:01:42.6]}
30... Re7 {[%clk 0:02:22.8]} 31. Qf2 {[%clk 0:01:30.4]} 31... Ng4 {[%clk
0:02:20.3]} 32. Qg1 {[%clk 0:01:17]} 32... f5 {[%clk 0:02:16]} 33. Bxg7 {[%clk
0:01:14.1]} 33... Kxg7 {[%clk 0:02:15.9]} 34. h3 {[%clk 0:01:10]} 34... Ne3
{[%clk 0:02:14.3]} 35. Rf2 {[%clk 0:01:06.9]} 35... f4 {[%clk 0:02:12.6]} 36.
Qa1+ {[%clk 0:01:05.7]} 36... Qe5 {[%clk 0:02:10.5]} 37. Qxe5+ {[%clk
0:01:04.3]} 37... Rxe5 {[%clk 0:02:10.4]} 38. Nc5 {[%clk 0:01:03.9]} 38... d4
{[%clk 0:02:07.5]} 39. b4 {[%clk 0:01:01.1]} 39... h5 {[%clk 0:02:05.6]} 40. Rd2
{[%clk 0:00:56.4]} 40... Nf5 {[%clk 0:02:04.1]} 41. Kg1 {[%clk 0:00:53.9]} 41...
Ng3 {[%clk 0:02:01.3]} 42. Kf2 {[%clk 0:00:52.7]} 42... Ne4+ {[%clk 0:01:57]}
43. Nxe4 {[%clk 0:00:51.4]} 43... Rxe4 {[%clk 0:01:56.9]} 44. Kf3 {[%clk
0:00:50.3]} 44... Re3+ {[%clk 0:01:55.4]} 45. Kf2 {[%clk 0:00:49.9]} 45... Rc3
{[%clk 0:01:52.9]} 46. Rxd4 {[%clk 0:00:48.7]} 46... Rxc2+ {[%clk 0:01:52.3]}
47. Kf3 {[%clk 0:00:48.3]} 47... Kf6 {[%clk 0:01:51.1]} 48. Rd7 {[%clk
0:00:46.8]} 48... Rc3+ {[%clk 0:01:42.7]} 49. Kf2 {[%clk 0:00:45.7]} 49... Rb3
{[%clk 0:01:41.2]} 50. Rd6+ {[%clk 0:00:43.4]} 50... Kf5 {[%clk 0:01:39.3]} 51.
Rxc6 {[%clk 0:00:42.5]} 51... Rxb4 {[%clk 0:01:38.7]} 52. Rc5+ {[%clk
0:00:42.2]} 52... Kf6 {[%clk 0:01:37.7]} 53. Rc6+ {[%clk 0:00:41.7]} 53... Kf5
{[%clk 0:01:37.1]} 54. Rc5+ {[%clk 0:00:41.1]} 54... Ke4 {[%clk 0:01:27.4]} 55.
Rxg5 {[%clk 0:00:39.8]} 55... Rb2+ {[%clk 0:01:26.8]} 56. Kg1 {[%clk 0:00:38.4]}
56... Ra2 {[%clk 0:01:26.5]} 57. Rg6 {[%clk 0:00:35.5]} 57... h4 {[%clk
0:01:22.8]} 58. Rh6 {[%clk 0:00:34.5]} 58... Ke3 {[%clk 0:01:20.8]} 59. Re6+
{[%clk 0:00:33.6]} 59... Kd4 {[%clk 0:01:19.7]} 60. Kf1 {[%clk 0:00:32.9]} 60...
Kd3 {[%clk 0:01:18]} 61. Rd6+ {[%clk 0:00:31.7]} 61... Kc4 {[%clk 0:01:16.4]}
62. Rf6 {[%clk 0:00:30.6]} 62... Kd3 {[%clk 0:01:05]} 63. Rxf4 {[%clk
0:00:29.7]} 63... Ke3 {[%clk 0:01:03.9]} 64. Rf3+ {[%clk 0:00:29.3]} 64... Ke4
{[%clk 0:01:03.3]} 65. Kg1 {[%clk 0:00:29.2]} 65... Rxa6 {[%clk 0:01:01.5]} 66.
Rf7 {[%clk 0:00:27.8]} 66... Ra4 {[%clk 0:00:58]} 67. Rh7 {[%clk 0:00:25.3]}
67... Ke3 {[%clk 0:00:57.1]} 68. g3 {[%clk 0:00:23.3]} 68... hxg3 {[%clk
0:00:55.1]} 69. Kg2 {[%clk 0:00:23]} 69... a5 {[%clk 0:00:54.1]} 70. Kxg3 {[%clk
0:00:22.8]} 70... Rb4 {[%clk 0:00:51.1]} 71. Ra7 {[%clk 0:00:22.3]} 71... a4
{[%clk 0:00:50.3]} 72. h4 {[%clk 0:00:21.9]} 72... Kd3 {[%clk 0:00:49.2]} 73. h5
{[%clk 0:00:21.3]} 73... Kc3 {[%clk 0:00:48.8]} 74. h6 {[%clk 0:00:20.5]} 74...
Kb3 {[%clk 0:00:48.1]} 75. h7 {[%clk 0:00:20]} 75... Rb8 {[%clk 0:00:47.4]} 76.
Rb7+ {[%clk 0:00:19.7]} 76... Rxb7 {[%clk 0:00:45.7]} 77. h8=Q {[%clk
0:00:19.1]} 77... a3 {[%clk 0:00:45.3]} 78. Qg8+ {[%clk 0:00:17.6]} 1/2-1/2

[Event "Live Chess"]
[Site "Chess.com"]
[Date "2023.05.20"]
[Round "-"]
[White "azimchess2019"]
[Black "CocheseUK"]
[Result "1-0"]
[WhiteElo "1329"]
[BlackElo "1210"]
[TimeControl "300"]
[EndTime "9:14:28 PDT"]
[Termination "azimchess2019 won on time"]

1. d4 {[%clk 0:04:54.4]} 1... d5 {[%clk 0:04:58]} 2. c4 {[%clk 0:04:53.4]} 2...
dxc4 {[%clk 0:04:56.6]} 3. e4 {[%clk 0:04:52]} 3... e6 {[%clk 0:04:55.3]} 4.
Bxc4 {[%clk 0:04:45.4]} 4... Bb4+ {[%clk 0:04:53.3]} 5. Nc3 {[%clk 0:04:43.2]}
5... Nc6 {[%clk 0:04:44.9]} 6. Be3 {[%clk 0:04:29]} 6... Nf6 {[%clk 0:04:35]} 7.
f3 {[%clk 0:04:27.7]} 7... O-O {[%clk 0:04:32]} 8. Ne2 {[%clk 0:04:26.6]} 8...
b6 {[%clk 0:04:23.1]} 9. O-O {[%clk 0:04:12]} 9... Bb7 {[%clk 0:04:21.5]} 10. a3
{[%clk 0:04:09.9]} 10... Be7 {[%clk 0:04:18.5]} 11. Qc2 {[%clk 0:04:03.6]} 11...
Na5 {[%clk 0:04:09.1]} 12. Ba2 {[%clk 0:04:01.6]} 12... c5 {[%clk 0:04:05.6]}
13. Rad1 {[%clk 0:04:00.8]} 13... c4 {[%clk 0:03:59.1]} 14. Qa4 {[%clk
0:03:43.6]} 14... Rc8 {[%clk 0:03:47.4]} 15. d5 {[%clk 0:03:35.8]} 15... exd5
{[%clk 0:03:44.6]} 16. exd5 {[%clk 0:03:30]} 16... Bd6 {[%clk 0:03:40.2]} 17.
Nd4 {[%clk 0:03:05.9]} 17... Nxd5 {[%clk 0:03:12.4]} 18. Nxd5 {[%clk 0:03:02.4]}
18... Bxd5 {[%clk 0:03:10.3]} 19. Nb5 {[%clk 0:02:58.6]} 19... Qf6 {[%clk
0:02:51.7]} 20. Rxd5 {[%clk 0:02:47.9]} 20... Bf4 {[%clk 0:02:29.4]} 21. Bxf4
{[%clk 0:02:33.5]} 21... Qxf4 {[%clk 0:02:27.6]} 22. Nxa7 {[%clk 0:02:25.5]}
22... Rc5 {[%clk 0:02:14]} 23. Rxc5 {[%clk 0:02:11.9]} 23... Qe3+ {[%clk
0:02:09.3]} 24. Kh1 {[%clk 0:02:10.5]} 24... Qxc5 {[%clk 0:02:07.8]} 25. Qb5
{[%clk 0:02:07.2]} 25... Qxb5 {[%clk 0:01:54.3]} 26. Nxb5 {[%clk 0:02:07.1]}
26... Rd8 {[%clk 0:01:45.2]} 27. Rb1 {[%clk 0:02:04.9]} 27... Rd2 {[%clk
0:01:41]} 28. h3 {[%clk 0:02:03]} 28... Nb3 {[%clk 0:01:20]} 29. Bxb3 {[%clk
0:01:58.2]} 29... cxb3 {[%clk 0:01:17.1]} 30. Nc3 {[%clk 0:01:56.5]} 30... f5
{[%clk 0:01:03.2]} 31. Na4 {[%clk 0:01:54.4]} 31... b5 {[%clk 0:00:59]} 32. Nc3
{[%clk 0:01:52.9]} 32... b4 {[%clk 0:00:40.4]} 33. axb4 {[%clk 0:01:49.7]} 33...
Rd4 {[%clk 0:00:39.1]} 34. Ne2 {[%clk 0:01:44.5]} 34... Rxb4 {[%clk 0:00:35.2]}
35. Ng3 {[%clk 0:01:43.2]} 35... g6 {[%clk 0:00:31]} 36. Rc1 {[%clk 0:01:38.3]}
36... Kg7 {[%clk 0:00:28.9]} 37. Rc3 {[%clk 0:01:14]} 37... Kf6 {[%clk 0:00:22]}
38. Kg1 {[%clk 0:01:11.8]} 38... Ke5 {[%clk 0:00:20.3]} 39. Kf2 {[%clk
0:01:10.7]} 39... Kf4 {[%clk 0:00:18.5]} 40. Ne2+ {[%clk 0:01:08.3]} 40... Ke5
{[%clk 0:00:16.7]} 41. Ke3 {[%clk 0:01:04.1]} 41... g5 {[%clk 0:00:10.4]} 42. g3
{[%clk 0:01:00.3]} 42... f4+ {[%clk 0:00:07.2]} 43. gxf4+ {[%clk 0:00:58.8]}
43... gxf4+ {[%clk 0:00:06]} 44. Nxf4 {[%clk 0:00:58.7]} 44... Rxf4 {[%clk
0:00:04.6]} 45. Rc5+ {[%clk 0:00:51.8]} 1-0

[Event "Live Chess"]
[Site "Chess.com"]
[Date "2023.05.20"]
[Round "-"]
[White "HoarseyHorsey"]
[Black "Delacorta"]
[Result "1/2-1/2"]
[WhiteElo "1383"]
[BlackElo "1419"]
[TimeControl "300"]
[EndTime "9:14:32 PDT"]
[Termination "Game drawn by repetition"]

1. d4 {[%clk 0:04:58.7]} 1... e6 {[%clk 0:04:57]} 2. c4 {[%clk 0:04:57.5]} 2...
f5 {[%clk 0:04:55.8]} 3. Nc3 {[%clk 0:04:55.9]} 3... Nf6 {[%clk 0:04:53.9]} 4.
Bg5 {[%clk 0:04:50.5]} 4... c6 {[%clk 0:04:51.7]} 5. e4 {[%clk 0:04:46.7]} 5...
fxe4 {[%clk 0:04:46]} 6. Nxe4 {[%clk 0:04:45.4]} 6... Be7 {[%clk 0:04:45.4]} 7.
Bd3 {[%clk 0:04:40.1]} 7... O-O {[%clk 0:04:41.8]} 8. Nf3 {[%clk 0:04:32.9]}
8... d5 {[%clk 0:04:32.3]} 9. cxd5 {[%clk 0:04:30]} 9... exd5 {[%clk 0:04:31]}
10. Nxf6+ {[%clk 0:04:28.7]} 10... Bxf6 {[%clk 0:04:30.9]} 11. Bxf6 {[%clk
0:04:27.2]} 11... Qxf6 {[%clk 0:04:27]} 12. O-O {[%clk 0:04:26]} 12... Bg4
{[%clk 0:04:25.3]} 13. Be2 {[%clk 0:04:20.9]} 13... Nd7 {[%clk 0:04:12.2]} 14.
Qd3 {[%clk 0:04:14.6]} 14... Bxf3 {[%clk 0:03:58.3]} 15. Bxf3 {[%clk 0:04:12.7]}
15... Rae8 {[%clk 0:03:47.4]} 16. Rae1 {[%clk 0:04:07.3]} 16... Rxe1 {[%clk
0:03:04.1]} 17. Rxe1 {[%clk 0:04:07.2]} 17... Qf7 {[%clk 0:02:58.8]} 18. Re2
{[%clk 0:03:46.4]} 18... Nf6 {[%clk 0:02:57.7]} 19. Kf1 {[%clk 0:03:00.5]} 19...
Re8 {[%clk 0:02:54.8]} 20. h3 {[%clk 0:02:41.2]} 20... Rxe2 {[%clk 0:02:51.4]}
21. Qxe2 {[%clk 0:02:39.7]} 21... Qe8 {[%clk 0:02:30.2]} 22. Qd3 {[%clk
0:02:04.3]} 22... b6 {[%clk 0:02:18.3]} 23. b4 {[%clk 0:01:52.4]} 23... Qe7
{[%clk 0:02:03.3]} 24. a3 {[%clk 0:01:48.9]} 24... g6 {[%clk 0:01:44.5]} 25. Qc2
{[%clk 0:01:28.6]} 25... Qd6 {[%clk 0:01:36.9]} 26. Qe2 {[%clk 0:01:23]} 26...
Kf8 {[%clk 0:01:32.3]} 27. Bg4 {[%clk 0:01:10.5]} 27... Qb8 {[%clk 0:01:27.8]}
28. Qe6 {[%clk 0:00:53.5]} 28... Nxg4 {[%clk 0:01:12.9]} 29. hxg4 {[%clk
0:00:48.3]} 29... Qf4 {[%clk 0:01:06.5]} 30. g3 {[%clk 0:00:30.4]} 30... Qxd4
{[%clk 0:00:56.2]} 31. Qd6+ {[%clk 0:00:25]} 31... Ke8 {[%clk 0:00:41]} 32.
Qxc6+ {[%clk 0:00:23.1]} 32... Kf8 {[%clk 0:00:38.8]} 33. Qc8+ {[%clk
0:00:19.5]} 33... Kg7 {[%clk 0:00:37.4]} 34. Qd7+ {[%clk 0:00:18.7]} 34... Kh6
{[%clk 0:00:36.5]} 35. Qxa7 {[%clk 0:00:16.6]} 35... Qd1+ {[%clk 0:00:35.8]} 36.
Kg2 {[%clk 0:00:15.8]} 36... Qxg4 {[%clk 0:00:32.6]} 37. Qxb6 {[%clk 0:00:13.9]}
37... Qe4+ {[%clk 0:00:31.8]} 38. Kf1 {[%clk 0:00:12.4]} 38... Qb1+ {[%clk
0:00:30.5]} 39. Kg2 {[%clk 0:00:11.3]} 39... Qe4+ {[%clk 0:00:30.1]} 40. Kf1
{[%clk 0:00:10.6]} 40... Qb1+ {[%clk 0:00:29]} 41. Kg2 {[%clk 0:00:09.9]} 41...
Qe4+ {[%clk 0:00:28.1]} 1/2-1/2

[Event "Live Chess"]
[Site "Chess.com"]
[Date "2023.05.20"]
[Round "-"]
[White "Duke_of_Bebington"]
[Black "Bunny55"]
[Result "1-0"]
[WhiteElo "1563"]
[BlackElo "963"]
[TimeControl "300"]
[EndTime "9:14:32 PDT"]
[Termination "Duke_of_Bebington won by resignation"]

1. e4 {[%clk 0:04:57.5]} 1... c5 {[%clk 0:04:58.1]} 2. c3 {[%clk 0:04:56.1]}
2... d5 {[%clk 0:04:53.9]} 3. exd5 {[%clk 0:04:54.5]} 3... Qxd5 {[%clk
0:04:51.2]} 4. d4 {[%clk 0:04:45.1]} 4... Nc6 {[%clk 0:04:48.2]} 5. dxc5 {[%clk
0:04:41.3]} 5... Qxd1+ {[%clk 0:04:45.5]} 6. Kxd1 {[%clk 0:04:39.8]} 6... Nf6
{[%clk 0:04:41.8]} 7. Bd3 {[%clk 0:04:12.5]} 7... e5 {[%clk 0:04:38.7]} 8. b4
{[%clk 0:04:07.3]} 8... Be7 {[%clk 0:04:33.9]} 9. Na3 {[%clk 0:03:54]} 9... O-O
{[%clk 0:04:31.9]} 10. Nc4 {[%clk 0:03:48.6]} 10... e4 {[%clk 0:04:09.8]} 11.
Bc2 {[%clk 0:03:34.2]} 11... Rd8+ {[%clk 0:04:00.2]} 12. Ke2 {[%clk 0:03:32.4]}
12... Bg4+ {[%clk 0:03:55]} 13. f3 {[%clk 0:03:31.1]} 13... exf3+ {[%clk
0:03:53]} 14. Nxf3 {[%clk 0:03:29.4]} 14... Ne5 {[%clk 0:03:45.1]} 15. Nxe5
{[%clk 0:03:26.1]} 1-0

[Event "Live Chess"]
[Site "Chess.com"]
[Date "2023.05.20"]
[Round "-"]
[White "EdenHazard8"]
[Black "suneebaker"]
[Result "0-1"]
[WhiteElo "2101"]
[BlackElo "2121"]
[TimeControl "300"]
[EndTime "9:14:37 PDT"]
[Termination "suneebaker won by resignation"]

1. e4 {[%clk 0:04:58.3]} 1... e5 {[%clk 0:04:57.9]} 2. Nf3 {[%clk 0:04:56.7]}
2... Nc6 {[%clk 0:04:56.5]} 3. Bb5 {[%clk 0:04:56.3]} 3... a6 {[%clk 0:04:54.7]}
4. Ba4 {[%clk 0:04:55.6]} 4... Nf6 {[%clk 0:04:53.1]} 5. O-O {[%clk 0:04:55.3]}
5... Be7 {[%clk 0:04:51.4]} 6. Re1 {[%clk 0:04:54.2]} 6... b5 {[%clk 0:04:50.1]}
7. Bb3 {[%clk 0:04:53]} 7... O-O {[%clk 0:04:48.6]} 8. c3 {[%clk 0:04:52]} 8...
d6 {[%clk 0:04:44.3]} 9. d3 {[%clk 0:04:48.1]} 9... Be6 {[%clk 0:04:30.5]} 10.
Nbd2 {[%clk 0:04:45.1]} 10... h6 {[%clk 0:04:26.9]} 11. Nf1 {[%clk 0:04:42.1]}
11... Bxb3 {[%clk 0:04:22.4]} 12. axb3 {[%clk 0:04:35.8]} 12... d5 {[%clk
0:04:11.8]} 13. exd5 {[%clk 0:04:32.7]} 13... Qxd5 {[%clk 0:04:05]} 14. Ne3
{[%clk 0:04:31.7]} 14... Qd7 {[%clk 0:04:00.6]} 15. Qc2 {[%clk 0:04:12]} 15...
Rfd8 {[%clk 0:03:57.1]} 16. Nf1 {[%clk 0:04:06.1]} 16... Qxd3 {[%clk 0:03:52.2]}
17. Qxd3 {[%clk 0:04:04.5]} 17... Rxd3 {[%clk 0:03:50.7]} 18. Nxe5 {[%clk
0:04:03.9]} 18... Nxe5 {[%clk 0:03:49.2]} 19. Rxe5 {[%clk 0:04:03.4]} 19... Bd6
{[%clk 0:03:43.9]} 20. Re1 {[%clk 0:04:01.4]} 20... a5 {[%clk 0:03:40]} 21. Be3
{[%clk 0:03:51.7]} 21... a4 {[%clk 0:03:32.4]} 22. bxa4 {[%clk 0:03:49.9]} 22...
bxa4 {[%clk 0:03:29.9]} 23. Ra2 {[%clk 0:03:22.8]} 23... a3 {[%clk 0:03:23.7]}
24. bxa3 {[%clk 0:03:21.5]} 24... Rxa3 {[%clk 0:03:19.7]} 25. Rxa3 {[%clk
0:03:20]} 25... Bxa3 {[%clk 0:03:18.6]} 26. Bd4 {[%clk 0:03:18.2]} 26... Nd5
{[%clk 0:03:13.5]} 27. Re8+ {[%clk 0:02:47]} 27... Kh7 {[%clk 0:03:11.9]} 28.
Rc8 {[%clk 0:02:46.4]} 28... Bd6 {[%clk 0:03:09.1]} 29. c4 {[%clk 0:02:18.1]}
29... Rxd4 {[%clk 0:03:05.9]} 30. cxd5 {[%clk 0:02:17.2]} 30... Rxd5 {[%clk
0:03:04.6]} 31. Ne3 {[%clk 0:02:17.1]} 31... Rd2 {[%clk 0:02:59]} 32. g3 {[%clk
0:02:13.7]} 32... Kg6 {[%clk 0:02:52.3]} 33. Kg2 {[%clk 0:02:09.8]} 33... Bc5
{[%clk 0:02:48.1]} 34. Nc4 {[%clk 0:02:05.6]} 34... Rxf2+ {[%clk 0:02:45.5]} 35.
Kh3 {[%clk 0:02:03.9]} 35... Bd6 {[%clk 0:02:32]} 36. Rd8 {[%clk 0:02:01.8]}
36... Rf6 {[%clk 0:02:29.6]} 37. Ne3 {[%clk 0:01:58.7]} 37... Re6 {[%clk
0:02:27]} 38. Nd5 {[%clk 0:01:57.3]} 38... h5 {[%clk 0:02:24.4]} 39. Rc8 {[%clk
0:01:46.8]} 39... Kf5 {[%clk 0:02:18.2]} 40. Nxc7 {[%clk 0:01:43.4]} 40... Bxc7
{[%clk 0:02:17.1]} 41. Rxc7 {[%clk 0:01:43.3]} 41... Kg6 {[%clk 0:02:15]} 42.
Rc5 {[%clk 0:01:38.6]} 42... f6 {[%clk 0:02:13.4]} 43. Kg2 {[%clk 0:01:17.2]}
43... Re2+ {[%clk 0:02:11.9]} 44. Kh3 {[%clk 0:01:15.6]} 44... Kh6 {[%clk
0:02:09.7]} 45. Rc6 {[%clk 0:01:12.8]} 45... Kg5 {[%clk 0:02:06.1]} 46. Rc4
{[%clk 0:01:07.5]} 46... Kf5 {[%clk 0:02:02.5]} 47. Rf4+ {[%clk 0:01:05.5]}
47... Ke5 {[%clk 0:01:59.6]} 48. Rh4 {[%clk 0:01:00]} 48... g6 {[%clk
0:01:56.8]} 49. Ra4 {[%clk 0:00:58.2]} 49... g5 {[%clk 0:01:54.6]} 50. g4 {[%clk
0:00:53.2]} 50... hxg4+ {[%clk 0:01:47.6]} 51. Rxg4 {[%clk 0:00:47.9]} 51... Kf5
{[%clk 0:01:44.5]} 52. Ra4 {[%clk 0:00:45.5]} 52... Re4 {[%clk 0:01:42.4]} 53.
Ra1 {[%clk 0:00:35.5]} 53... Kg6 {[%clk 0:01:39.6]} 54. Ra6 {[%clk 0:00:32.1]}
54... Rb4 {[%clk 0:01:36.2]} 55. Kg3 {[%clk 0:00:29.8]} 55... Rc4 {[%clk
0:01:32.6]} 56. h3 {[%clk 0:00:26.7]} 56... Rc5 {[%clk 0:01:30.9]} 57. Rb6
{[%clk 0:00:25]} 57... Kf5 {[%clk 0:01:29.5]} 58. Kf3 {[%clk 0:00:22.6]} 58...
Rc3+ {[%clk 0:01:28]} 59. Kg2 {[%clk 0:00:21.4]} 59... Ke5 {[%clk 0:01:26.6]}
60. Rb5+ {[%clk 0:00:19.9]} 60... Kf4 {[%clk 0:01:25.4]} 61. Rb6 {[%clk
0:00:19.8]} 61... f5 {[%clk 0:01:23.4]} 62. Rb4+ {[%clk 0:00:17.7]} 62... Ke5
{[%clk 0:01:22.2]} 63. Rb5+ {[%clk 0:00:16.2]} 63... Ke6 {[%clk 0:01:19.5]} 64.
Rb6+ {[%clk 0:00:15.6]} 64... Ke5 {[%clk 0:01:16.5]} 65. Rb5+ {[%clk 0:00:15]}
65... Kf6 {[%clk 0:01:15.5]} 66. Rb6+ {[%clk 0:00:14.3]} 66... Kg7 {[%clk
0:01:14.7]} 67. Rb5 {[%clk 0:00:13.9]} 67... Kg6 {[%clk 0:01:12.8]} 68. Rb6+
{[%clk 0:00:13.3]} 68... Kh5 {[%clk 0:01:11.8]} 69. Rb5 {[%clk 0:00:12.9]} 69...
Rc2+ {[%clk 0:01:09.3]} 70. Kg3 {[%clk 0:00:11.4]} 70... f4+ {[%clk 0:01:06.9]}
71. Kf3 {[%clk 0:00:10.6]} 71... Rh2 {[%clk 0:01:04.4]} 72. Ke4 {[%clk
0:00:09.1]} 72... Rxh3 {[%clk 0:01:03.1]} 73. Kf5 {[%clk 0:00:09]} 73... Rg3
{[%clk 0:01:02]} 74. Kf6 {[%clk 0:00:08.4]} 74... Kh4 {[%clk 0:00:58.8]} 75. Rf5
{[%clk 0:00:08.3]} 75... f3 {[%clk 0:00:57.2]} 76. Kg6 {[%clk 0:00:07.8]} 76...
Kh3 {[%clk 0:00:54]} 77. Rf8 {[%clk 0:00:06.7]} 77... Kg2 {[%clk 0:00:53]} 78.
Ra8 {[%clk 0:00:05.3]} 78... f2 {[%clk 0:00:52]} 79. Ra2 {[%clk 0:00:05.2]}
79... Kg1 {[%clk 0:00:51]} 0-1